[Event "Titled Tuesday Blitz February 07 Early 2023"]
[White "Mastrovasilis, Athanasios"]
[Black "sabkeIXO"]
[WhiteFideId "4201990"]
[WhiteElo "2497"]
[BlackElo "2467"]
[Result "1-0"]
[Round "03"]
[TimeControl "180+2"]
[Date "2023.02.07"]
[WhiteClock "0:00:28"]
[BlackClock "0:00:53"]

1. d4 {[%clk 0:02:58]}  Nf6 {[%clk 0:02:59]} 2. c4 {[%clk 0:02:58]}  g6 {[%clk 0:02:59]} 3. Nc3 {[%clk 0:02:59]}  Bg7 {[%clk 0:02:59]} 4. Nf3 {[%clk 0:02:59]}  O-O {[%clk 0:02:59]} 5. h4 {[%clk 0:02:59]}  h5 {[%clk 0:02:58]} 6. Bg5 {[%clk 0:02:58]}  d6 {[%clk 0:02:58]} 7. e3 {[%clk 0:02:55]}  Bg4 {[%clk 0:02:58]} 8. Qc2 {[%clk 0:02:53]}  Nc6 {[%clk 0:02:48]} 9. O-O-O {[%clk 0:02:47]}  Nh7 {[%clk 0:02:36]} 10. Bf4 {[%clk 0:02:44]}  Bxf3 {[%clk 0:02:35]} 11. gxf3 {[%clk 0:02:44]}  e5 {[%clk 0:02:35]} 12. dxe5 {[%clk 0:02:43]}  Nxe5 {[%clk 0:02:35]} 13. Ne4 {[%clk 0:02:37]}  Nxf3 {[%clk 0:02:27]} 14. Be2 {[%clk 0:02:35]}  Nxh4 {[%clk 0:02:24]} 15. Rdg1 {[%clk 0:02:23]}  Nf5 {[%clk 0:02:20]} 16. Bxh5 {[%clk 0:02:20]}  Nf6 {[%clk 0:02:13]} 17. Bf3 {[%clk 0:01:51]}  Nxe4 {[%clk 0:02:02]} 18. Bxe4 {[%clk 0:01:49]}  Ne7 {[%clk 0:01:51]} 19. Bh6 {[%clk 0:01:40]}  Bxh6 {[%clk 0:01:33]} 20. Rxh6 {[%clk 0:01:38]}  f5 {[%clk 0:01:31]} 21. Bd5+ {[%clk 0:00:56]}  Nxd5 {[%clk 0:01:09]} 22. Rgxg6+ {[%clk 0:00:46]}  Kf7 {[%clk 0:01:06]} 23. Qxf5+ {[%clk 0:00:43]}  Ke8 {[%clk 0:01:01]} 24. Qxd5 {[%clk 0:00:38]}  Qd7 {[%clk 0:01:00]} 25. Re6+ {[%clk 0:00:30]}  Kd8 {[%clk 0:00:58]} 26. Rxd6 {[%clk 0:00:28]}  cxd6 {[%clk 0:00:56]} 27. Rxd6 {[%clk 0:00:29]}  Rf7 {[%clk 0:00:52]} 28. Rxd7+ {[%clk 0:00:27]}  Rxd7 {[%clk 0:00:53]} 29. Qg8+ {[%clk 0:00:28]} 1-0


[Site "https://www.chess.com"]

[Event "Titled Tuesday Blitz February 07 Early 2023"]
[White "Leiva, Gianmarco"]
[Black "Mirzanurov, Bulat"]
[WhiteFideId "3804399"]
[BlackFideId "4184521"]
[WhiteElo "2392"]
[BlackElo "2232"]
[Result "1-0"]
[Round "03"]
[TimeControl "180+2"]
[Date "2023.02.07"]
[WhiteClock "0:00:11"]
[BlackClock "0:00:02"]

1. e4 {[%clk 0:02:59]}  c5 {[%clk 0:02:59]} 2. Nc3 {[%clk 0:02:56]}  d6 {[%clk 0:02:56]} 3. g3 {[%clk 0:02:55]}  g6 {[%clk 0:02:53]} 4. Bg2 {[%clk 0:02:55]}  Bg7 {[%clk 0:02:53]} 5. Nge2 {[%clk 0:02:55]}  Nc6 {[%clk 0:02:52]} 6. d3 {[%clk 0:02:54]}  e6 {[%clk 0:02:51]} 7. Be3 {[%clk 0:02:54]}  Nd4 {[%clk 0:02:47]} 8. Qd2 {[%clk 0:02:51]}  Rb8 {[%clk 0:02:42]} 9. Nd1 {[%clk 0:02:50]}  Ne7 {[%clk 0:02:39]} 10. c3 {[%clk 0:02:49]}  Nxe2 {[%clk 0:02:38]} 11. Qxe2 {[%clk 0:02:50]}  b5 {[%clk 0:02:37]} 12. d4 {[%clk 0:02:48]}  c4 {[%clk 0:02:32]} 13. O-O {[%clk 0:02:47]}  O-O {[%clk 0:02:31]} 14. a4 {[%clk 0:02:43]}  a6 {[%clk 0:02:29]} 15. axb5 {[%clk 0:02:39]}  axb5 {[%clk 0:02:29]} 16. f4 {[%clk 0:02:32]}  d5 {[%clk 0:02:25]} 17. Nf2 {[%clk 0:02:19]}  b4 {[%clk 0:02:03]} 18. e5 {[%clk 0:01:54]}  h5 {[%clk 0:01:52]} 19. Bd2 {[%clk 0:01:32]}  b3 {[%clk 0:01:50]} 20. h3 {[%clk 0:01:28]}  Nf5 {[%clk 0:01:44]} 21. Qf3 {[%clk 0:01:12]}  Bd7 {[%clk 0:01:35]} 22. Nd1 {[%clk 0:01:04]}  Qe7 {[%clk 0:01:22]} 23. Ne3 {[%clk 0:01:02]}  Ra8 {[%clk 0:01:18]} 24. Nxf5 {[%clk 0:00:57]}  gxf5 {[%clk 0:01:09]} 25. Qxh5 {[%clk 0:00:49]}  Bc6 {[%clk 0:00:53]} 26. Rab1 {[%clk 0:00:42]}  Ra2 {[%clk 0:00:51]} 27. g4 {[%clk 0:00:42]}  fxg4 {[%clk 0:00:47]} 28. hxg4 {[%clk 0:00:43]}  f5 {[%clk 0:00:38]} 29. g5 {[%clk 0:00:41]}  Rfa8 {[%clk 0:00:34]} 30. Kf2 {[%clk 0:00:32]}  Qa7 {[%clk 0:00:25]} 31. Ke3 {[%clk 0:00:24]}  Qe7 {[%clk 0:00:19]} 32. Rh1 {[%clk 0:00:23]}  R8a7 {[%clk 0:00:12]} 33. Bf3 {[%clk 0:00:20]}  Qd8 {[%clk 0:00:06]} 34. Qg6 {[%clk 0:00:19]}  Qa8 {[%clk 0:00:05]} 35. Qxe6+ {[%clk 0:00:18]}  Kf8 {[%clk 0:00:05]} 36. Qd6+ {[%clk 0:00:17]}  Kg8 {[%clk 0:00:05]} 37. Qe6+ {[%clk 0:00:17]}  Kf8 {[%clk 0:00:05]} 38. Qxf5+ {[%clk 0:00:18]}  Kg8 {[%clk 0:00:05]} 39. Bh5 {[%clk 0:00:17]}  Be8 {[%clk 0:00:02]} 40. Qe6+ {[%clk 0:00:14]}  Bf7 {[%clk 0:00:02]} 41. Bxf7+ {[%clk 0:00:14]}  Rxf7 {[%clk 0:00:03]} 42. Qg4 {[%clk 0:00:14]}  Rfa7 {[%clk 0:00:02]} 43. Qe6+ {[%clk 0:00:13]}  Kf8 {[%clk 0:00:02]} 44. f5 {[%clk 0:00:13]}  R7a6 {[%clk 0:00:02]} 45. Qd7 {[%clk 0:00:10]}  Ra7 {[%clk 0:00:02]} 46. Qd6+ {[%clk 0:00:11]}  Kg8 {[%clk 0:00:03]} 47. f6 {[%clk 0:00:11]}  R7a6 {[%clk 0:00:03]} 48. Qd7 {[%clk 0:00:12]}  Bf8 {[%clk 0:00:03]} 49. Qh3 {[%clk 0:00:11]}  Ra7 {[%clk 0:00:02]} 50. g6 {[%clk 0:00:11]} 1-0


[Site "https://www.chess.com"]

[Event "Titled Tuesday Blitz February 07 Early 2023"]
[White "Fiorito, Joaquin"]
[Black "Sai Han Thiha"]
[WhiteFideId "180173"]
[BlackFideId "13012290"]
[WhiteElo "2405"]
[BlackElo "2070"]
[Result "1-0"]
[Round "03"]
[TimeControl "180+2"]
[Date "2023.02.07"]
[WhiteClock "0:00:55"]
[BlackClock "0:00:06"]

1. d4 {[%clk 0:03:00]}  Nf6 {[%clk 0:03:00]} 2. Nc3 {[%clk 0:03:00]}  d5 {[%clk 0:02:53]} 3. Bf4 {[%clk 0:03:00]}  c5 {[%clk 0:02:46]} 4. e4 {[%clk 0:03:00]}  Nxe4 {[%clk 0:02:26]} 5. Bb5+ {[%clk 0:02:59]}  Nc6 {[%clk 0:02:09]} 6. Nxe4 {[%clk 0:02:59]}  dxe4 {[%clk 0:02:10]} 7. Ne2 {[%clk 0:02:59]}  e6 {[%clk 0:01:34]} 8. Bxc6+ {[%clk 0:02:53]}  bxc6 {[%clk 0:01:34]} 9. dxc5 {[%clk 0:02:50]}  Bxc5 {[%clk 0:01:26]} 10. Qxd8+ {[%clk 0:02:47]}  Kxd8 {[%clk 0:01:27]} 11. O-O-O+ {[%clk 0:02:35]}  Ke7 {[%clk 0:01:27]} 12. Nd4 {[%clk 0:02:14]}  Bb7 {[%clk 0:01:08]} 13. Be3 {[%clk 0:02:08]}  Bb6 {[%clk 0:01:06]} 14. Nb3 {[%clk 0:01:56]}  f5 {[%clk 0:00:26]} 15. Nc5 {[%clk 0:01:47]}  Bc8 {[%clk 0:00:26]} 16. Bd4 {[%clk 0:01:35]}  e5 {[%clk 0:00:18]} 17. Bxe5 {[%clk 0:01:09]}  Bxc5 {[%clk 0:00:18]} 18. f3 {[%clk 0:01:09]}  e3 {[%clk 0:00:17]} 19. c3 {[%clk 0:01:08]}  Be6 {[%clk 0:00:15]} 20. b4 {[%clk 0:01:03]}  Bb6 {[%clk 0:00:15]} 21. a4 {[%clk 0:01:04]}  a5 {[%clk 0:00:15]} 22. b5 {[%clk 0:01:02]}  cxb5 {[%clk 0:00:15]} 23. axb5 {[%clk 0:01:03]}  Rhd8 {[%clk 0:00:15]} 24. Bxg7 {[%clk 0:01:02]}  Rac8 {[%clk 0:00:10]} 25. Rhe1 {[%clk 0:00:58]}  f4 {[%clk 0:00:10]} 26. g3 {[%clk 0:00:58]}  fxg3 {[%clk 0:00:08]} 27. hxg3 {[%clk 0:00:59]}  Rg8 {[%clk 0:00:08]} 28. Be5 {[%clk 0:00:59]}  Rc5 {[%clk 0:00:08]} 29. Bd4 {[%clk 0:00:59]}  Rxb5 {[%clk 0:00:07]} 30. Rxe3 {[%clk 0:00:54]}  Bxd4 {[%clk 0:00:06]} 31. cxd4 {[%clk 0:00:55]} 1-0


[Site "https://www.chess.com"]

[Event "Titled Tuesday Blitz February 07 Early 2023"]
[White "Baches Garcia, Guillermo"]
[Black "Pacan-Milej, Kosma"]
[WhiteFideId "2209764"]
[BlackFideId "21800537"]
[WhiteElo "2327"]
[BlackElo "2402"]
[Result "0-1"]
[Round "03"]
[TimeControl "180+2"]
[Date "2023.02.07"]
[WhiteClock "0:00:25"]
[BlackClock "0:01:00"]

1. e4 {[%clk 0:03:00]}  c6 {[%clk 0:02:50]} 2. c4 {[%clk 0:03:00]}  d5 {[%clk 0:02:49]} 3. exd5 {[%clk 0:03:01]}  cxd5 {[%clk 0:02:50]} 4. cxd5 {[%clk 0:03:02]}  Nf6 {[%clk 0:02:50]} 5. Nc3 {[%clk 0:03:02]}  Nbd7 {[%clk 0:02:49]} 6. Bc4 {[%clk 0:02:58]}  Nb6 {[%clk 0:02:48]} 7. d3 {[%clk 0:02:49]}  g6 {[%clk 0:02:48]} 8. Qb3 {[%clk 0:02:48]}  Bg7 {[%clk 0:02:47]} 9. Nf3 {[%clk 0:02:48]}  O-O {[%clk 0:02:46]} 10. O-O {[%clk 0:02:48]}  a6 {[%clk 0:02:44]} 11. Be3 {[%clk 0:02:43]}  Nbd7 {[%clk 0:02:44]} 12. a4 {[%clk 0:02:43]}  b6 {[%clk 0:02:42]} 13. Nd4 {[%clk 0:02:38]}  Nc5 {[%clk 0:02:22]} 14. Qa3 {[%clk 0:02:36]}  Bb7 {[%clk 0:02:14]} 15. Nc6 {[%clk 0:02:28]}  Qd6 {[%clk 0:02:13]} 16. Ne4 {[%clk 0:02:07]}  Nfxe4 {[%clk 0:02:12]} 17. dxe4 {[%clk 0:02:07]}  Bxc6 {[%clk 0:02:11]} 18. dxc6 {[%clk 0:02:05]}  Nxe4 {[%clk 0:02:00]} 19. Qxd6 {[%clk 0:02:02]}  Nxd6 {[%clk 0:02:01]} 20. Bd5 {[%clk 0:02:00]}  e6 {[%clk 0:01:55]} 21. Bf3 {[%clk 0:01:58]}  Nc4 {[%clk 0:01:55]} 22. Rac1 {[%clk 0:01:52]}  Nxe3 {[%clk 0:01:51]} 23. fxe3 {[%clk 0:01:53]}  Rac8 {[%clk 0:01:51]} 24. Rfd1 {[%clk 0:01:44]}  Bxb2 {[%clk 0:01:50]} 25. Rb1 {[%clk 0:01:42]}  Ba3 {[%clk 0:01:45]} 26. Rxb6 {[%clk 0:01:40]}  a5 {[%clk 0:01:38]} 27. Kf2 {[%clk 0:01:23]}  Kg7 {[%clk 0:01:34]} 28. Rb5 {[%clk 0:01:22]}  Bb4 {[%clk 0:01:33]} 29. Rd7 {[%clk 0:01:20]}  Rfd8 {[%clk 0:01:28]} 30. Rbb7 {[%clk 0:01:08]}  Rxd7 {[%clk 0:01:26]} 31. Rxd7 {[%clk 0:01:04]}  Bc3 {[%clk 0:01:15]} 32. Ke2 {[%clk 0:00:50]}  Kf6 {[%clk 0:01:14]} 33. Kd3 {[%clk 0:00:49]}  Be5 {[%clk 0:01:14]} 34. g3 {[%clk 0:00:49]}  Rc7 {[%clk 0:01:10]} 35. Rxc7 {[%clk 0:00:44]}  Bxc7 {[%clk 0:01:11]} 36. Ke4 {[%clk 0:00:44]}  Ke7 {[%clk 0:01:11]} 37. h4 {[%clk 0:00:43]}  Bxg3 {[%clk 0:01:10]} 38. h5 {[%clk 0:00:43]}  Kd6 {[%clk 0:01:06]} 39. hxg6 {[%clk 0:00:43]}  hxg6 {[%clk 0:01:07]} 40. Kd3 {[%clk 0:00:41]}  f5 {[%clk 0:01:06]} 41. Kc4 {[%clk 0:00:40]}  Bf2 {[%clk 0:01:04]} 42. e4 {[%clk 0:00:34]}  g5 {[%clk 0:01:02]} 43. exf5 {[%clk 0:00:33]}  exf5 {[%clk 0:01:03]} 44. Kd3 {[%clk 0:00:32]}  g4 {[%clk 0:01:01]} 45. Bg2 {[%clk 0:00:31]}  Bb6 {[%clk 0:01:00]} 46. Ke2 {[%clk 0:00:29]}  Ke5 {[%clk 0:01:00]} 47. Kf1 {[%clk 0:00:25]}  Kf4 {[%clk 0:01:00]} 48. Bd5 {[%clk 0:00:25]}  Kg3 {[%clk 0:01:00]} 0-1


[Site "https://www.chess.com"]

[Event "Titled Tuesday Blitz February 07 Early 2023"]
[White "Sammed Jaykumar, Shete"]
[Black "Gjestemoen-VonHirsch, Andre"]
[WhiteFideId "5073421"]
[BlackFideId "1539531"]
[WhiteElo "2440"]
[BlackElo "2314"]
[Result "0-1"]
[Round "03"]
[TimeControl "180+2"]
[Date "2023.02.07"]
[WhiteClock "0:00:14"]
[BlackClock "0:00:40"]

1. Nf3 {[%clk 0:02:55]}  Nf6 {[%clk 0:02:57]} 2. g3 {[%clk 0:02:53]}  g6 {[%clk 0:02:58]} 3. Bg2 {[%clk 0:02:53]}  Bg7 {[%clk 0:02:57]} 4. O-O {[%clk 0:02:54]}  O-O {[%clk 0:02:58]} 5. d4 {[%clk 0:02:52]}  d5 {[%clk 0:02:57]} 6. Nc3 {[%clk 0:02:46]}  c6 {[%clk 0:02:51]} 7. Re1 {[%clk 0:02:46]}  Bf5 {[%clk 0:02:48]} 8. Nh4 {[%clk 0:02:45]}  Bg4 {[%clk 0:02:44]} 9. h3 {[%clk 0:02:42]}  Be6 {[%clk 0:02:44]} 10. Bf4 {[%clk 0:02:36]}  Qd7 {[%clk 0:02:41]} 11. g4 {[%clk 0:02:30]}  h5 {[%clk 0:02:37]} 12. g5 {[%clk 0:02:26]}  Ne8 {[%clk 0:02:36]} 13. Qd3 {[%clk 0:02:22]}  Na6 {[%clk 0:02:28]} 14. a3 {[%clk 0:02:21]}  Nac7 {[%clk 0:02:26]} 15. Rad1 {[%clk 0:02:16]}  Rd8 {[%clk 0:02:22]} 16. e4 {[%clk 0:02:13]}  dxe4 {[%clk 0:02:19]} 17. Nxe4 {[%clk 0:02:14]}  Bxd4 {[%clk 0:02:04]} 18. c3 {[%clk 0:01:27]}  Bb6 {[%clk 0:01:58]} 19. Qf3 {[%clk 0:01:20]}  Qc8 {[%clk 0:01:58]} 20. Be5 {[%clk 0:01:20]}  Bd5 {[%clk 0:01:49]} 21. Qe2 {[%clk 0:01:08]}  Qe6 {[%clk 0:01:43]} 22. Bg3 {[%clk 0:01:06]}  Ng7 {[%clk 0:01:34]} 23. Kh2 {[%clk 0:00:50]}  Bb3 {[%clk 0:01:21]} 24. Rxd8 {[%clk 0:00:47]}  Rxd8 {[%clk 0:01:22]} 25. Qf1 {[%clk 0:00:39]}  Qc4 {[%clk 0:01:06]} 26. Qh1 {[%clk 0:00:32]}  Nce6 {[%clk 0:00:52]} 27. Bf1 {[%clk 0:00:28]}  Qa4 {[%clk 0:00:51]} 28. Qf3 {[%clk 0:00:19]}  Bd5 {[%clk 0:00:47]} 29. Qe2 {[%clk 0:00:17]}  Qxe4 {[%clk 0:00:44]} 30. Qxe4 {[%clk 0:00:18]}  Bxe4 {[%clk 0:00:45]} 31. Rxe4 {[%clk 0:00:19]}  Rd2 {[%clk 0:00:41]} 32. b4 {[%clk 0:00:19]}  Bxf2 {[%clk 0:00:41]} 33. Nf3 {[%clk 0:00:14]}  Bxg3+ {[%clk 0:00:39]} 34. Kxg3 {[%clk 0:00:14]}  Nf5# {[%clk 0:00:40]} 0-1


[Site "https://www.chess.com"]

[Event "Titled Tuesday Blitz February 07 Early 2023"]
[White "The_Sherman_Variation"]
[Black "Dong, Bao Nghia"]
[BlackFideId "12400343"]
[WhiteElo "2461"]
[BlackElo "2332"]
[Result "1/2-1/2"]
[Round "03"]
[TimeControl "180+2"]
[Date "2023.02.07"]
[WhiteClock "0:00:15"]
[BlackClock "0:01:33"]

1. e4 {[%clk 0:02:54]}  e6 {[%clk 0:02:58]} 2. d4 {[%clk 0:02:52]}  d5 {[%clk 0:02:59]} 3. Bd3 {[%clk 0:02:51]}  Nc6 {[%clk 0:02:58]} 4. c3 {[%clk 0:02:45]}  e5 {[%clk 0:02:58]} 5. Ne2 {[%clk 0:02:26]}  exd4 {[%clk 0:02:57]} 6. cxd4 {[%clk 0:02:26]}  dxe4 {[%clk 0:02:57]} 7. Bxe4 {[%clk 0:02:27]}  Nf6 {[%clk 0:02:57]} 8. Bf3 {[%clk 0:02:27]}  Bg4 {[%clk 0:02:56]} 9. Bxg4 {[%clk 0:02:26]}  Nxg4 {[%clk 0:02:57]} 10. h3 {[%clk 0:02:25]}  Nf6 {[%clk 0:02:57]} 11. O-O {[%clk 0:02:26]}  Be7 {[%clk 0:02:56]} 12. Nbc3 {[%clk 0:02:24]}  O-O {[%clk 0:02:56]} 13. Bf4 {[%clk 0:02:23]}  Nb4 {[%clk 0:02:56]} 14. Bg3 {[%clk 0:02:16]}  c6 {[%clk 0:02:56]} 15. Nf4 {[%clk 0:02:14]}  Nbd5 {[%clk 0:02:55]} 16. Nd3 {[%clk 0:02:13]}  Re8 {[%clk 0:02:53]} 17. Ne5 {[%clk 0:02:10]}  Bb4 {[%clk 0:02:51]} 18. Qd3 {[%clk 0:02:02]}  Bxc3 {[%clk 0:02:47]} 19. bxc3 {[%clk 0:02:03]}  Rc8 {[%clk 0:02:47]} 20. Rab1 {[%clk 0:01:59]}  Nb6 {[%clk 0:02:42]} 21. c4 {[%clk 0:01:55]}  c5 {[%clk 0:02:36]} 22. d5 {[%clk 0:01:52]}  Nh5 {[%clk 0:02:36]} 23. Bh2 {[%clk 0:01:48]}  Qf6 {[%clk 0:02:35]} 24. Ng4 {[%clk 0:01:42]}  Qd4 {[%clk 0:02:31]} 25. Qf5 {[%clk 0:01:32]}  g6 {[%clk 0:02:22]} 26. Qf3 {[%clk 0:00:59]}  f5 {[%clk 0:02:19]} 27. Nh6+ {[%clk 0:00:58]}  Kg7 {[%clk 0:02:19]} 28. Nxf5+ {[%clk 0:00:58]}  gxf5 {[%clk 0:02:19]} 29. Qxh5 {[%clk 0:00:58]}  Qxc4 {[%clk 0:02:19]} 30. Qg5+ {[%clk 0:00:55]}  Kh8 {[%clk 0:02:18]} 31. Qf6+ {[%clk 0:00:47]}  Kg8 {[%clk 0:02:18]} 32. Be5 {[%clk 0:00:45]}  Rxe5 {[%clk 0:02:15]} 33. Qxe5 {[%clk 0:00:45]}  Qxd5 {[%clk 0:02:14]} 34. Qxd5+ {[%clk 0:00:41]}  Nxd5 {[%clk 0:02:15]} 35. Rxb7 {[%clk 0:00:42]}  c4 {[%clk 0:02:15]} 36. Rc1 {[%clk 0:00:36]}  c3 {[%clk 0:02:15]} 37. Rb5 {[%clk 0:00:33]}  Nf4 {[%clk 0:02:15]} 38. Rc2 {[%clk 0:00:31]}  Ne2+ {[%clk 0:02:12]} 39. Rxe2 {[%clk 0:00:22]}  c2 {[%clk 0:02:13]} 40. Rxc2 {[%clk 0:00:20]}  Rxc2 {[%clk 0:02:14]} 41. Rb8+ {[%clk 0:00:21]}  Kf7 {[%clk 0:02:14]} 42. Rb7+ {[%clk 0:00:21]}  Kg6 {[%clk 0:02:14]} 43. Rxa7 {[%clk 0:00:22]}  Kg5 {[%clk 0:02:14]} 44. f3 {[%clk 0:00:22]}  Kf4 {[%clk 0:02:13]} 45. Rxh7 {[%clk 0:00:22]}  Rxa2 {[%clk 0:02:13]} 46. Kh2 {[%clk 0:00:22]}  Ke3 {[%clk 0:02:11]} 47. Rb7 {[%clk 0:00:20]}  Kf2 {[%clk 0:02:09]} 48. h4 {[%clk 0:00:21]}  f4 {[%clk 0:02:10]} 49. Rb1 {[%clk 0:00:21]}  Rc2 {[%clk 0:02:04]} 50. Kh3 {[%clk 0:00:21]}  Ke3 {[%clk 0:02:01]} 51. Rb3+ {[%clk 0:00:21]}  Kd4 {[%clk 0:02:01]} 52. Rb4+ {[%clk 0:00:21]}  Ke5 {[%clk 0:02:01]} 53. Rb5+ {[%clk 0:00:22]}  Kf6 {[%clk 0:01:59]} 54. Rg5 {[%clk 0:00:22]}  Ra2 {[%clk 0:01:57]} 55. Rg4 {[%clk 0:00:23]}  Kf5 {[%clk 0:01:57]} 56. h5 {[%clk 0:00:24]}  Ra1 {[%clk 0:01:57]} 57. Kh2 {[%clk 0:00:22]}  Ra6 {[%clk 0:01:57]} 58. Rh4 {[%clk 0:00:22]}  Kg5 {[%clk 0:01:55]} 59. g3 {[%clk 0:00:19]}  fxg3+ {[%clk 0:01:47]} 60. Kxg3 {[%clk 0:00:20]}  Kh6 {[%clk 0:01:47]} 61. Rh3 {[%clk 0:00:17]}  Ra4 {[%clk 0:01:46]} 62. Rh1 {[%clk 0:00:16]}  Ra3 {[%clk 0:01:45]} 63. Kg4 {[%clk 0:00:16]}  Ra8 {[%clk 0:01:45]} 64. f4 {[%clk 0:00:16]}  Rg8+ {[%clk 0:01:45]} 65. Kh4 {[%clk 0:00:17]}  Rg2 {[%clk 0:01:45]} 66. Rb1 {[%clk 0:00:16]}  Rh2+ {[%clk 0:01:42]} 67. Kg4 {[%clk 0:00:17]}  Rg2+ {[%clk 0:01:42]} 68. Kf3 {[%clk 0:00:17]}  Ra2 {[%clk 0:01:42]} 69. Rb5 {[%clk 0:00:17]}  Rh2 {[%clk 0:01:41]} 70. Rg5 {[%clk 0:00:17]}  Ra2 {[%clk 0:01:41]} 71. Ke4 {[%clk 0:00:17]}  Ra4+ {[%clk 0:01:40]} 72. Kf5 {[%clk 0:00:17]}  Ra5+ {[%clk 0:01:41]} 73. Kg4 {[%clk 0:00:18]}  Ra6 {[%clk 0:01:41]} 74. Rg8 {[%clk 0:00:17]}  Kh7 {[%clk 0:01:40]} 75. Rb8 {[%clk 0:00:16]}  Kh6 {[%clk 0:01:40]} 76. Rb5 {[%clk 0:00:17]}  Rc6 {[%clk 0:01:40]} 77. Re5 {[%clk 0:00:16]}  Ra6 {[%clk 0:01:40]} 78. Re8 {[%clk 0:00:13]}  Rb6 {[%clk 0:01:40]} 79. Rh8+ {[%clk 0:00:13]}  Kg7 {[%clk 0:01:40]} 80. Rc8 {[%clk 0:00:13]}  Kh6 {[%clk 0:01:41]} 81. Rc5 {[%clk 0:00:13]}  Ra6 {[%clk 0:01:41]} 82. Rg5 {[%clk 0:00:13]}  Rb6 {[%clk 0:01:39]} 83. Re5 {[%clk 0:00:14]}  Ra6 {[%clk 0:01:39]} 84. Kf3 {[%clk 0:00:14]}  Ra3+ {[%clk 0:01:39]} 85. Ke4 {[%clk 0:00:14]}  Ra4+ {[%clk 0:01:38]} 86. Kf5 {[%clk 0:00:15]}  Kxh5 {[%clk 0:01:37]} 87. Kf6+ {[%clk 0:00:16]}  Kh6 {[%clk 0:01:38]} 88. f5 {[%clk 0:00:16]}  Ra8 {[%clk 0:01:35]} 89. Re7 {[%clk 0:00:16]}  Ra6+ {[%clk 0:01:32]} 90. Kf7 {[%clk 0:00:16]}  Kg5 {[%clk 0:01:32]} 91. Re5 {[%clk 0:00:14]}  Rf6+ {[%clk 0:01:32]} 92. Kg7 {[%clk 0:00:14]}  Rxf5 {[%clk 0:01:32]} 93. Rxf5+ {[%clk 0:00:15]}  Kxf5 {[%clk 0:01:33]} 1/2-1/2


[Site "https://www.chess.com"]

[Event "Titled Tuesday Blitz February 07 Early 2023"]
[White "Degenbaev, Aziz"]
[Black "Jain Kashish Manoj"]
[WhiteFideId "13802640"]
[BlackFideId "35081098"]
[WhiteElo "2203"]
[BlackElo "2375"]
[Result "1-0"]
[Round "03"]
[TimeControl "180+2"]
[Date "2023.02.07"]
[WhiteClock "0:00:12"]
[BlackClock "0:00:05"]

1. e4 {[%clk 0:02:52]}  c5 {[%clk 0:02:51]} 2. Nf3 {[%clk 0:02:51]}  a6 {[%clk 0:02:44]} 3. c3 {[%clk 0:02:49]}  e6 {[%clk 0:02:43]} 4. d4 {[%clk 0:02:46]}  d5 {[%clk 0:02:43]} 5. e5 {[%clk 0:02:41]}  Bd7 {[%clk 0:02:43]} 6. Be2 {[%clk 0:02:31]}  Bb5 {[%clk 0:02:43]} 7. O-O {[%clk 0:02:31]}  Bxe2 {[%clk 0:02:41]} 8. Qxe2 {[%clk 0:02:31]}  Nc6 {[%clk 0:02:41]} 9. a3 {[%clk 0:02:29]}  Na5 {[%clk 0:02:29]} 10. Nbd2 {[%clk 0:02:05]}  cxd4 {[%clk 0:02:29]} 11. Nxd4 {[%clk 0:01:58]}  Ne7 {[%clk 0:02:22]} 12. f4 {[%clk 0:01:56]}  Nac6 {[%clk 0:02:03]} 13. N2f3 {[%clk 0:01:56]}  Nxd4 {[%clk 0:02:00]} 14. Nxd4 {[%clk 0:01:57]}  g6 {[%clk 0:02:00]} 15. Kh1 {[%clk 0:01:54]}  Rc8 {[%clk 0:01:57]} 16. Be3 {[%clk 0:01:54]}  Nf5 {[%clk 0:01:54]} 17. Nxf5 {[%clk 0:01:50]}  gxf5 {[%clk 0:01:55]} 18. Rad1 {[%clk 0:01:46]}  Be7 {[%clk 0:01:48]} 19. Qh5 {[%clk 0:01:40]}  Qd7 {[%clk 0:01:31]} 20. Rf2 {[%clk 0:00:56]}  Qa4 {[%clk 0:00:38]} 21. Re1 {[%clk 0:00:39]}  Bc5 {[%clk 0:00:21]} 22. Bxc5 {[%clk 0:00:31]}  Rxc5 {[%clk 0:00:22]} 23. g4 {[%clk 0:00:31]}  fxg4 {[%clk 0:00:17]} 24. f5 {[%clk 0:00:31]}  Qc6 {[%clk 0:00:07]} 25. fxe6 {[%clk 0:00:22]}  Qxe6 {[%clk 0:00:07]} 26. Rf6 {[%clk 0:00:19]}  Qe7 {[%clk 0:00:07]} 27. Ref1 {[%clk 0:00:16]}  Rc7 {[%clk 0:00:05]} 28. e6 {[%clk 0:00:16]}  O-O {[%clk 0:00:04]} 29. Qxg4+ {[%clk 0:00:15]}  Kh8 {[%clk 0:00:05]} 30. Qd4 {[%clk 0:00:15]}  Rc4 {[%clk 0:00:03]} 31. Rxf7+ {[%clk 0:00:11]}  Rxd4 {[%clk 0:00:04]} 32. Rxf8+ {[%clk 0:00:12]}  Kg7 {[%clk 0:00:04]} 33. R8f7+ {[%clk 0:00:12]}  Qxf7 {[%clk 0:00:05]} 1-0


[Site "https://www.chess.com"]

[Event "Titled Tuesday Blitz February 07 Early 2023"]
[White "Ansh M Shah"]
[Black "Suder, Jakub"]
[WhiteFideId "25033379"]
[BlackFideId "1195310"]
[WhiteElo "2171"]
[BlackElo "2244"]
[Result "0-1"]
[Round "03"]
[TimeControl "180+2"]
[Date "2023.02.07"]
[WhiteClock "0:00:01"]
[BlackClock "0:02:07"]

1. d4 {[%clk 0:03:00]}  d5 {[%clk 0:02:59]} 2. c4 {[%clk 0:03:01]}  e6 {[%clk 0:02:59]} 3. g3 {[%clk 0:02:50]}  Nf6 {[%clk 0:02:59]} 4. Bg2 {[%clk 0:02:51]}  Be7 {[%clk 0:02:58]} 5. Nf3 {[%clk 0:02:48]}  O-O {[%clk 0:02:58]} 6. O-O {[%clk 0:02:41]}  dxc4 {[%clk 0:02:59]} 7. Qc2 {[%clk 0:02:38]}  b5 {[%clk 0:02:59]} 8. a4 {[%clk 0:02:37]}  b4 {[%clk 0:02:59]} 9. Nbd2 {[%clk 0:02:37]}  Bb7 {[%clk 0:02:58]} 10. Nxc4 {[%clk 0:02:37]}  Nbd7 {[%clk 0:02:55]} 11. Bf4 {[%clk 0:02:35]}  Be4 {[%clk 0:02:54]} 12. Qb3 {[%clk 0:02:21]}  Bd5 {[%clk 0:02:54]} 13. Nfe5 {[%clk 0:02:14]}  c5 {[%clk 0:02:53]} 14. Nxd7 {[%clk 0:02:11]}  Nxd7 {[%clk 0:02:35]} 15. Bxd5 {[%clk 0:02:02]}  exd5 {[%clk 0:02:35]} 16. Nd6 {[%clk 0:01:57]}  c4 {[%clk 0:02:23]} 17. Qxb4 {[%clk 0:01:54]}  Nb6 {[%clk 0:02:15]} 18. Qc5 {[%clk 0:00:02]}  Rc8 {[%clk 0:02:07]} 19. Nxc8 {[%clk 0:00:01]}  Bxc5 {[%clk 0:02:06]} 20. dxc5 {[%clk 0:00:01]}  Nxc8 {[%clk 0:02:07]} 0-1


[Site "https://www.chess.com"]